Cogmind - Beta 11.1 *** ADVENTURER MODE // 2022.05.12 @ 21:46:45 Player: Fgdfgfthgr Result: Destroyed by 8R-AWN with 8R-AWN's Boregun Performance ------------- Evolutions (0) 0 Regions Visited (3) 600 Robots Destroyed (32) 160 Value Destroyed (513) 513 Prototype IDs (27) 540 Alien Tech Used (0) 0 Bonus (-523) -523 TOTAL SCORE: 1290 Bonus ------- Follower Combat Kills 14 Aligned with FarCom 300 Friendly Fire -837 Cogmind --------- Core Integrity 0/250 Matter 149/300 Energy 98/100 System Corruption 0% Temperature Cool (0) Movement Treading (160) Location -10/Exiles Parts ------- > --- POWER (1) -------- (None) > --- PROPULSION (2) --- Improved Treads Improved Treads > --- UTILITY (2) ------ Large Storage Unit > --- WEAPON (2) ------- Light Assault Rifle Light Assault Rifle > --- INVENTORY (15) --- Light Treads Light Treads Light Treads Light Treads Huge Storage Unit Experimental Sensor Array Trap Extractor (0/4) Beam Cannon Rocket Launcher Peak State ------------ > --- POWER ------------ Light Ion Engine > --- PROPULSION ------- Improved Treads Improved Treads > --- UTILITY ---------- Heat Sink Large Storage Unit > --- WEAPON ----------- Beam Cannon Assault Rifle > --- INVENTORY -------- Light Ion Engine Fission Core Fission Core Light Treads Improved Treads Improved Treads Huge Storage Unit Experimental Sensor Array Trap Extractor Light Assault Rifle Light Assault Rifle Light Assault Rifle Light Assault Rifle Rocket Launcher [Rating: 12] Favorites ----------- Power Light Ion Engine Engine Light Ion Engine Propulsion Improved Treads Treads Improved Treads Leg Aluminum Leg Utility Large Storage Unit Device Heat Sink Storage Large Storage Unit Weapon Beam Cannon Energy Gun EM Pulse Gun Energy Cannon Beam Cannon Ballistic Gun Assault Rifle Launcher Rocket Launcher Special Weapon Welding Torch Build | -11 -10 -10 -10 ------- Run | Scr Mat Min Exi Slots Evolved . | . . . . Power . | . . . . Propulsion . | . . . . Utility . | . . . . Weapon . | . . . . Parts Attached 24 | . 14 1 9 Power 3 | . 1 1 1 Engine 3 | . 1 1 1 Core . | . . . . Reactor . | . . . . Propulsion 6 | . 4 . 2 Treads 6 | . 4 . 2 Leg . | . . . . Wheel . | . . . . Hover . | . . . . Flight . | . . . . Utility 3 | . 3 . . Device 1 | . 1 . . Storage 2 | . 2 . . Processor . | . . . . Hackware . | . . . . Protection . | . . . . Artifact . | . . . . Weapon 12 | . 6 . 6 Energy Gun 2 | . 2 . . Energy Cannon 1 | . 1 . . Ballistic Gun 7 | . 2 . 5 Ballistic Cannon . | . . . . Launcher 1 | . . . 1 Special Weapon 1 | . 1 . . Impact Weapon . | . . . . Slashing Weapon . | . . . . Piercing Weapon . | . . . . Special Melee Weapon . | . . . . Unidentified Prototypes . | . . . . Parts Lost 8 | . . . 8 Power 2 | . . . 2 Propulsion 2 | . . . 2 Utility 1 | . . . 1 Weapon 3 | . . . 3 Highest Loss Streak 7 | . . . 7 To Critical Strikes 6 | . . . 6 Average Slot Usage (%) 96 | . 91 100 96 Engine 13 | . 14 14 12 Treads 27 | . 26 28 27 Device 10 | . 6 14 12 Storage 14 | . 14 14 14 Energy Gun 7 | . 19 . . Energy Cannon 10 | . 6 14 11 Ballistic Gun 10 | . 2 14 16 Naked Turns . | . . . . Heaviest Build 29 | 11 29 29 29 Greatest Support 46 | 20 46 46 46 Greatest Overweight (x) . | . . . . Average Overweight (x) . | . . . . Largest Inventory Capacity 15 | . 15 15 15 Average Capacity 14 | . 14 15 15 Most Carried 15 | . 15 15 15 Average Carried 14 | . 13 14 14 Final Capacity 15 | 8 15 15 15 Final Carried 15 | 6 15 15 9 Class Distribution -------------------- 100% | Mutant Dominant Class ---------------- Mutant | -10/Materials Mutant | -10/Mines Mutant | -10/Exiles Resources | -11 -10 -10 -10 ----------- Run | Scr Mat Min Exi Matter Collected 487 | 200 152 82 53 Remotely . | . . . . Salvage Created 858 | . 507 263 88 Parts 59 | . 34 22 3 Haulers Intercepted 1 | . 1 . . Recyclers Shooed 1 | . 1 . . Parts Field Recycled . | . . . . Retrieved Matter . | . . . . Parts Self-Destructed . | . . . . Prevented . | . . . . Kills | -11 -10 -10 -10 ------- Run | Scr Mat Min Exi Combat Hostiles Destroyed 24 | . 15 6 3 Guns 13 | . 11 1 1 Cannons 7 | . 2 5 . AOE 4 | . 2 . 2 Classes Destroyed 7 | . 5 1 1 Worker 3 | . 1 2 . Tunneler 3 | . . 3 . Hauler 1 | . 1 . . Watcher 2 | . 2 . . Swarmer 13 | . 9 4 . Grunt 10 | . 6 2 2 Assembled 5 | . . . 5 Best Kill Streak 4 | . 4 3 3 Combat Bots Only 4 | . 4 3 3 Max Kills in Single Turn 3 | . 1 1 3 Gunslinging . | . . . . Exploded 2 | . 1 . 2 Melee . | . . . . Uniques/NPCs Destroyed . | . . . . Combat | -11 -10 -10 -10 -------- Run | Scr Mat Min Exi Damage Taken 1295 | . 308 134 853 Core 255 | . 67 28 160 Absorbed by Shields . | . . . . Core Remaining (%) 100 | 100 . . . Volleys Fired 114 | . 36 24 54 Largest 2 | . 2 2 2 Hottest 100 | . 100 80 40 Shots Fired 222 | . 70 48 104 Gun 175 | . 51 24 100 Cannon 42 | . 18 24 . Launcher 4 | . . . 4 Special 1 | . 1 . . Kinetic 128 | . 4 24 100 Thermal 59 | . 35 24 . Explosive 4 | . . . 4 Electromagnetic 31 | . 31 . . Robot Hit Streak 38 | . 21 10 38 Robot Miss Streak 3 | . 3 2 1 Penetration Max . | . . . . Secondary Targets 1 | . 1 . . Max Gunslinging Chain 1 | . 1 . . Shots Hit Robots 173 | . 48 28 97 Core Hits 64 | . 22 14 28 Critical Kills . | . . . . Critical Parts Destroyed 1 | . . . 1 Critical Strikes 3 | . 1 . 2 Destroy 2 | . . . 2 Corrupt 1 | . 1 . . Melee Attacks . | . . . . Impact . | . . . . Slashing . | . . . . Piercing . | . . . . Sneak Attacks . | . . . . Combat Hostiles . | . . . . Follow-up Attacks . | . . . . Damage Inflicted 2610 | . 768 456 1386 Guns 1393 | . 484 141 768 Cannons 492 | . 177 315 . Explosions 723 | . 105 . 618 Melee . | . . . . Ramming . | . . . . Kinetic 949 | . 40 141 768 Thermal 668 | . 353 315 . Explosive 618 | . . . 618 Electromagnetic 375 | . 375 . . Impact . | . . . . Slashing . | . . . . Piercing . | . . . . Highest Corruption . | . . . . Average Corruption . | . . . . Corruption Purged . | . . . . Corruption Blocked . | . . . . Overload Shots . | . . . . Overflow Damage 50 | . . 16 34 Projectiles 16 | . . 16 . Explosions 34 | . . . 34 Melee . | . . . . Knockbacks . | . . . . Impact . | . . . . Kinetic . | . . . . Secondary . | . . . . Self-Inflicted Damage 115 | . 43 . 72 Shots 4 | . 2 . 2 Rammed . | . . . . Targets Rammed . | . . . . Kicked . | . . . . Crushed . | . . . . Highest Temperature 96 | . 96 5 6 Average Temperature 28 | . 29 2 3 Received Heat Transfer 110 | . 66 15 29 Siege Activations . | . . . . Robots Corrupted . | . . . . Combat Hostiles . | . . . . Parts Fried 4 | . 4 . . Impact Corruptions . | . . . . Robots Melted . | . . . . Combat Hostiles . | . . . . Parts Melted 1 | . . 1 . Heat Transferred 1311 | . 645 666 . Parts Sabotaged . | . . . . Parts Stolen . | . . . . Parts Stripped . | . . . . Power Chain Reactions 2 | . 2 . . Missiles Intercepted . | . . . . Alert | -11 -10 -10 -10 ------- Run | Scr Mat Min Exi Peak Influence 267 | . 267 148 . Initial 88 | . . 88 . Average 95 | . 110 80 . Maximum Alert Level 1 | . 1 . . Low Security (%) 93 | . 87 100 . Level 1 6 | . 12 . . Level 2 . | . . . . Level 3 . | . . . . Level 4 . | . . . . Level 5 . | . . . . High Security . | . . . . Max Security . | . . . . Squads Dispatched 2 | . 2 . . Investigation 2 | . 2 . . Extermination . | . . . . Reinforcement . | . . . . Assault . | . . . . Garrison . | . . . . Intercept . | . . . . Searches Triggered . | . . . . Construction Impeded . | . . . . Haulers Reinforced . | . . . . Active Scanning Responses . | . . . . Cargo Convoy Interrupts . | . . . . Stealth | -11 -10 -10 -10 --------- Run | Scr Mat Min Exi Distress Signals 1 | . 1 . . Communications Jammed . | . . . . Distress Signals . | . . . . Times Spotted 36 | . 21 9 6 Peak Tracking Total 7 | . 5 3 7 Tactical Retreats 2 | . 1 1 . Traps | -11 -10 -10 -10 ------- Run | Scr Mat Min Exi Traps Triggered 1 | . 1 . . Indirectly . | . . . . Trap Hack Attempts . | . . . . Triggered . | . . . . Disarmed 6 | . 6 . . Reprogrammed . | . . . . Reused . | . . . . Traps Extracted . | . . . . Installed . | . . . . Triggered . | . . . . Machines | -11 -10 -10 -10 ---------- Run | Scr Mat Min Exi Machines Disabled 8 | . 3 1 4 Max in Single Turn 2 | . 1 1 2 Machines Sabotaged . | . . . . Garrisons Compromised . | . . . . Overloaded Fab Kills . | . . . . Hacking | -11 -10 -10 -10 --------- Run | Scr Mat Min Exi Machines Accessed 13 | . 9 1 3 Terminals 8 | . 7 1 . Fabricators . | . . . . Repair Stations . | . . . . Recycling Units 2 | . 2 . . Scanalyzers . | . . . . Garrison Access . | . . . . Total Hacks 32 | . 26 2 4 Successful 25 | . 20 1 4 Failed 6 | . 5 1 . Catastrophic . | . . . . Database Lockouts 1 | . 1 . . Manual 21 | . 18 2 1 Terminals 26 | . 24 2 . Fabricators . | . . . . Repair Stations . | . . . . Recycling Units 2 | . 2 . . Scanalyzers . | . . . . Garrison Access . | . . . . Terminal Hacks 19 | . 14 1 4 Record 3 | . . . 3 Robot Analysis 2 | . 1 1 . Prototype ID Bank 5 | . 5 . . Branch Access Points 1 | . 1 . . Emergency Access Points 1 | . 1 . . Locate Traps 5 | . 5 . . Disarm Traps 1 | . 1 . . EX-Prototype ID Bank 1 | . . . 1 Fabricator Hacks . | . . . . Repair Station Hacks . | . . . . Recycling Unit Hacks . | . . . . Scanalyzer . | . . . . Garrison Access Hacks . | . . . . Unauthorized Hacks 6 | . 6 . . Terminals 4 | . 4 . . Botnet 4 | . 4 . . Fabricators . | . . . . Repair Stations . | . . . . Recycling Units 2 | . 2 . . Tunnel 2 | . 2 . . Scanalyzers . | . . . . Garrison Access . | . . . . Data Cores Recovered . | . . . . Used . | . . . . Hacking Detections 8 | . 7 1 . Full Trace Events 1 | . 1 . . Feedback Events . | . . . . Feedback Blocked . | . . . . Robot Schematics Acquired . | . . . . Robots Built . | . . . . Authchips . | . . . . Time . | . . . . Total Robot Build Rating . | . . . . Part Schematics Acquired . | . . . . Parts Built . | . . . . Authchips . | . . . . Time . | . . . . Total Part Build Rating . | . . . . Parts Repaired . | . . . . Time . | . . . . Parts Recycled . | . . . . Recycled Matter . | . . . . Retrieved Matter . | . . . . Retrieved Components . | . . . . Parts Scanalyzed . | . . . . Part Schematics Acquired . | . . . . Parts Damaged . | . . . . Bothacking | -11 -10 -10 -10 ------------ Run | Scr Mat Min Exi Used RIF Installer . | . . . . Robots Hacked . | . . . . Non-combat . | . . . . Combat . | . . . . Robot Hacks Applied . | . . . . Relay Couplers Released . | . . . . Fabnet Peak Effective % . | . . . . Robots Rewired . | . . . . Allies Hacked . | . . . . Hacks Repelled . | . . . . Allies | -11 -10 -10 -10 -------- Run | Scr Mat Min Exi Total Allies 3 | . . 3 . Largest Group 3 | . . 3 3 Highest-Rated Group 40 | . . 40 40 Highest-Rated Ally 16 | . . 16 16 Total Orders . | . . . . Ally Attacks 12 | . . 3 9 Total Damage 126 | . . 41 85 Kills 4 | . . 2 2 Allies Corrupted . | . . . . Allies Melted . | . . . . Intel | -11 -10 -10 -10 ------- Run | Scr Mat Min Exi Robot Analysis Total 2 | . 1 1 . Derelict Logs Recovered 3 | . . 3 . Drone Launches . | . . . . Drone Recoveries . | . . . . Exploration | -11 -10 -10 -10 ------------- Run | Scr Mat Min Exi Turns Passed 3176 | . 1188 1155 833 Spaces Moved 1715 | 1 629 664 421 Core . | . . . . Treads 1664 | . 579 664 421 Legs 51 | 1 50 . . Wheels . | . . . . Hover . | . . . . Flight . | . . . . Fastest Speed 120 | 120 120 160 160 Average Speed 158 | 120 156 160 160 Slowest Speed 160 | 120 160 160 160 Overloaded Moves . | . . . . Propulsion Burnouts . | . . . . Robots Hopped . | . . . . Cave-ins Triggered . | . . . . Exploration Rate (%) 65 | 2 94 98 68 Regions Visited 3 Branch Regions 2 Pre-discovered Areas 5 | . 2 2 1 Known Exits Taken 1 | . 1 . . Unknown Exits Taken 2 | 1 . 1 . Scrap Searched 1 | . . 1 . Spaces Dug . | . . . . Terrain Destroyed 31 | . 5 . 26 Melee . | . . . . Projectile . | . . . . AOE 31 | . 5 . 26 Terrain Rammed . | . . . . Walls Destroyed . | . . . . Machines Disabled . | . . . . Actions | -11 -10 -10 -10 --------- Run | Scr Mat Min Exi Total 1977 | . 765 712 500 Wait 70 | . 55 15 . Move 1712 | . 628 663 421 Hop . | . . . . Pick Up 28 | . 16 4 8 Fast Attach 5 | . 5 . . Attach 6 | . . . 6 Detach 2 | . 2 . . Swap 13 | . 9 1 3 Drop 27 | . 14 5 8 Fire 114 | . 36 24 54 Melee . | . . . . Ram . | . . . . Kick . | . . . . Crush . | . . . . Escape Stasis . | . . . . Rewire . | . . . . Trap . | . . . . Miscellaneous . | . . . . Route ------- -11/Scrapyard -10/Materials (discovered 5 exits: [*Mat x3] / *Min x2) -10/Mines (discovered 3 exits: [*Mat x2] / *Exi) -10/Exiles (discovered 1 exit: [*Min]) History --------- Turn | Location | Event 1 | -11/Scrapyard | Discovered new exit (range 0) 1 | -11/Scrapyard | Entered Materials 160 | -10/Materials | Central database locked down 243 | -10/Materials | Discovered new exit (range 16) 308 | -10/Materials | Discovered new exit (range 14) 317 | -10/Materials | Build established: Mutant 702 | -10/Materials | Discovered new exit (range 15) 801 | -10/Materials | Identified exit to Mines 1123 | -10/Materials | Discovered new exit (range 14) 1189 | -10/Materials | Entered Mines 1199 | -10/Mines | Met a Derelict bent on vengeance 1223 | -10/Mines | Learned location of Zion (-6) 1282 | -10/Mines | Deemed a non-threat by the Exiles lab entrance 1282 | -10/Mines | Discovered new exit (range 5) 1463 | -10/Mines | Received a Rocket Launcher from a helpful Derelict 1499 | -10/Mines | Discovered new exit (range 12) 1647 | -10/Mines | Learned location of Storage (-7) 1771 | -10/Mines | Assisted by bots powering up and referring to "LRC-V3" 1815 | -10/Mines | Found a damaged Exp. Sensor Array with a note attached 1819 | -10/Mines | Found Prototype Device 1844 | -10/Mines | Discovered new exit (range 10) 1900 | -10/Mines | Learned Materials stockpile data 2344 | -10/Mines | Entered Exiles 2344 | -10/Exiles | Accompanied by 3 allies 2413 | -10/Exiles | Discovered new exit (range 15) 2467 | -10/Exiles | Met 8R-AWN 2496 | -10/Exiles | Met EX-HEX 2558 | -10/Exiles | Met EX-DEC 2628 | -10/Exiles | Visited The Gauntlet 2852 | -10/Exiles | Met EX-BIN 2875 | -10/Exiles | Aligned with FarCom system 2876 | -10/Exiles | Given EX-Vault access code 2931 | -10/Exiles | Opened EX-Vault 2969 | -10/Exiles | Warned to stay clear of 0b10 Research branches 3034 | -10/Exiles | Attacked by the Exiles 3061 | -10/Exiles | Core integrity fell below 50% 3105 | -10/Exiles | Core integrity fell below 20% 3130 | -10/Exiles | Lost 7 parts (2p2n1u2w) 3177 | -10/Exiles | Destroyed by 8R-AWN with 8R-AWN's Boregun Last Messages --------------- 03099_ Penetrated by HV Slug. 03099_ Lgt. Ion Engine destroyed. 03104_ Penetrated by HV Slug. 03108_ Destroyed Prototype Protection. 03111_ Penetrated by HV Slug. 03111_ HV Slug penetrates Wall. 03115_ Penetrated by HV Slug. 03124_ 8R-AWN suffers critical hit (Destroy). 03124_ Destroyed Prototype Ballistic Gun. 03124_ Penetrated by HV Slug. 03135_ HV Slug penetrates Assembled Analyzer. 03136_ The unstable cave ceiling collapses. 03138_ HV Slug penetrates Earth. 03138_ HV Slug penetrates Assembled Analyzer. 03142_ Penetrated by HV Slug. 03152_ Critical hit (Destroy). 03152_ Lgt. Assault Rifle destroyed. 03156_ Penetrated by HV Slug. 03177_ 8R-AWN suffers critical hit (Destroy). 03177_ Penetrated by HV Slug. Map ----- +----------------------------------------------------+ | """#??????????????????????????????????? | | """#??????????????????????????????????? | | """#??????????????????????????????????? | | """#??????????????????????????????????? | | """##?????????????????????????????????? | | """""?????????????????????????????????? | | """##?????????????????????????????????? | | "X" """""?????????????????????????????????? | | """ # ?????????????????????????????????? | | """""""""#??????????????????????????????????? | | ###########??????????????????????????????????? | | #????????????????????????????????????????????? | | #????????????????????????????????????????????? | | ##???????????????????????????????????????????? | | ##???###########????????????????????????????? | | #####"""""""""##???????????????????????????? | | " """ """"##??????????????????????????? | | " #??????????????????????????? | | """#??????????????????????????? | | "a"#?#?#???????#####??????????? | | " ## # ??????##" #??????????? | | " ##"##?????#" #??????????? | | "" " " ##???##" ##?????????? | | #""" = #?### ###???????? | | #####""" *% # #?# ######### | | ????##""" % @ ### #""""## | | ?????#"""" % ;# | | ????##"" ! g ## | | ?####"""" #### | | ##""" ""#?#"""""#### | | """ #"""##?#######??#### | | ######??????????????## | | ##????????????????????? | | " ##?????????????????????? | | "" "" "#??????????????????????? | | ##""" " " ""#" #??????????????????????? | | ######""" """## ##???????????????????????? | | #????###""""### ## ????????????????????????? | | ####???######??? # ????????????????????????? | | "!#???????????????####????????????????????????? | | !#???????????????????????????????????????????? | | "#???????????????????????????????????????????? | | !""!"#???????????????????????????????????????????? | | ######???????????????????????????????????????????? | | ?????????????????????????????????????????????????? | | ?????????????????????????????????????????????????? | | ?????????????????????????????????????????????????? | | ?????????????????????????????????????????????????? | | ?????????????????????????????????????????????????? | | ?????????????????????????????????????????????????? | +----------------------------------------------------+ Best States ------------- Heat Dissipation 35 Energy Generation 10 Energy Capacity 125 Matter Stores 300 Matter Capacity 300 Sight Range 16 Terrain Scan Density 10 Resistance: KI 20 Resistance: TH 20 Resistance: EX 20 Resistance: EM 20 Resistance: I 20 Resistance: S 20 Resistance: P 20 Evasion (%) 55 Recoil Reduction 2 Offensive Hacking 10 Item Schematics ----------------- None Robot Schematics ------------------ None Fabricated ------------ Nothing Alien Tech Used ----------------- None Achievements -------------- None Challenges ------------ None Game ------ Seed ThunderBattleStorage Manual? 0 Play Time 00:17:50 Cumulative 185.4 hours Start 2022.05.12 @ 21:32:35 End 2022.05.12 @ 21:46:45 Sessions 1 Manual Loads 0 Difficulty Adventurer Special Mode None Game No. 83 Rogue 0 Adventurer 83 Explorer 0 Win Type - Total 14 Types 8/1/1/1/1/0/0/1/1 Lore% 88 Gallery% 84 Achievement% 75 Wizard Run 0 Options --------- ASCII 0 Keyboard 0 Movement Numpad Keybinds 0 Fullscreen 2 Font 18/SmallcapsGlow Map View 76x50 Tactical HUD 1 Map Filters NONE Filters NONE Steam 1 RUN: 4f5c2f95-ba7a-4b2f-9cf0-f57254760fab